fUST/lending_fUST_20251012
["ID","MTS","AMOUNT","RATE_DAILY","PERIOD"]
[390963266,1760233865340,-1039.5697889,0.00025,2]
[390963267,1760233865350,-770.54543832,0.00025,2]
[390963268,1760233865360,-177.59461824,0.00025,2]
[390963269,1760233865371,-160.0,0.00025,2]
[390963270,1760233865381,-1342.87767558,0.00025,2]
[390963271,1760233865392,-473.66867045,0.00025,2]
[390963272,1760233865401,-1242.0,0.00025027,2]
[390963273,1760233865410,-1242.0,0.00025028,2]
[390963274,1760233865420,-1242.0,0.0002506,2]
[390963275,1760233865430,-367.88781146,0.00025068,2]
[390963276,1760233865439,-501.19283632,0.00025068,2]
[390963277,1760233865448,-450.0,0.00025068,2]
[390963278,1760233865458,-545.36264581,0.000251,2]
[390963279,1760233865467,-560.0,0.00025142,2]
[390963280,1760233865477,-967.94960107,0.000252,2]
[390963281,1760233865487,-1039.5697889,0.000252,2]
[390963282,1760233865496,-770.54543832,0.000252,2]
[390963283,1760233865505,-177.59461824,0.000252,2]
[390963284,1760233865514,-160.0,0.000252,2]
[390963285,1760233865523,-1342.87767558,0.000252,2]
[390963286,1760233865533,-473.66867045,0.000252,2]
[390963287,1760233865542,-250.0,0.00025205,2]
[390963288,1760233865551,-3500.0,0.0002526,2]
[390963289,1760233865561,-176.72792493,0.00025279,5]
[390963290,1760233865571,-347.15162173,0.000253,2]
[390963291,1760233865580,-1001.32292699,0.00025421,2]
[390963292,1760233865590,-1000.0,0.00025421,2]
[390963293,1760233865599,-347.15162173,0.000255,2]
[390963294,1760233865608,-967.94960107,0.000255,2]
[390963295,1760233865617,-1039.5697889,0.000255,2]
[390963296,1760233865627,-770.54543832,0.000255,2]
[390963297,1760233865636,-177.59461824,0.000255,2]
[390963298,1760233865646,-1342.87767558,0.000255,2]
[390963299,1760233865655,-473.66867045,0.000255,2]
[390963300,1760233865664,-2351.0,0.00025515,2]
[390963301,1760233865674,-587.0,0.00025515,2]
[390963302,1760233865683,-2064.29,0.00025555,2]
[390963303,1760233865692,-600.0,0.00025616,2]
[390963304,1760233865702,-660.0,0.0002569,2]
[390963305,1760233865713,-967.94960107,0.000257,2]
[390963306,1760233865722,-1039.5697889,0.000257,2]
[390963307,1760233865731,-770.54543832,0.000257,2]
[390963308,1760233865741,-177.59461824,0.000257,2]
[390963309,1760233865750,-1342.87767558,0.000257,2]
[390963310,1760233865759,-473.66867045,0.000257,2]
[390963311,1760233865769,-588.41759153,0.000257,2]
[390963312,1760233865778,-2351.0,0.00025736,2]
[390963313,1760233865787,-350.0,0.00025753,2]
[390963314,1760233865797,-347.15162173,0.000258,2]
[390963315,1760233865806,-4000.0,0.00025808,2]
[390963316,1760233865815,-504.78424507,0.00025813,7]
[390963317,1760233865824,-1501.37887223,0.00025968,2]
[390963318,1760233865833,-347.15162173,0.00026,2]
[390963319,1760233865843,-967.94960107,0.00026,2]
[390963320,1760233865852,-1039.5697889,0.00026,2]
[390963321,1760233865862,-770.54543832,0.00026,2]
[390963322,1760233865871,-1342.87767558,0.00026,2]
[390963323,1760233865881,-473.66867045,0.00026,2]
[390963324,1760233865891,-12983.35,0.00026027,2]
[390963325,1760233865901,-150.67888213,0.00026164,2]
[390963326,1760233865911,-1039.5697889,0.000262,2]
[390963327,1760233865920,-710.42595223,0.00026238,2]
[390963328,1760233865930,-631.47253726,0.000263,2]
[390963329,1760233865939,-450.0,0.00026301,2]
[390963330,1760233865949,-3533.21777468,0.00026356,2]
[390963331,1760233865958,-2322.32,0.00026468,2]
[390963332,1760233865968,-1039.5697889,0.000265,2]
[390963333,1760233865977,-1039.5697889,0.000268,2]
[390963334,1760233865986,-550.0,0.00026849,2]
[390963335,1760233865996,-179.56903432,0.00026852,2]
[390963336,1760233866006,-674.52748298,0.000269,2]
[390963337,1760233866015,-298.08050243,0.00027,3]
[390963338,1760233866024,-1039.5697889,0.00027,2]
[390963339,1760233866035,-203.51087,0.00027,120]
[390963340,1760233866045,-864.0,0.00027049,30]
[390963341,1760233866055,-156.61599044,0.00027097,7]
[390963342,1760233866063,-1103.19,0.00027123,10]
[390963343,1760233866073,-1103.19,0.00027123,10]
[390963344,1760233866083,-1103.19,0.00027123,10]
[390963345,1760233866093,-1103.19,0.00027123,10]
[390963346,1760233866102,-1103.19,0.00027123,10]
[390963347,1760233866114,-1103.19,0.00027123,10]
[390963348,1760233866125,-1103.19,0.00027123,10]
[390963349,1760233866135,-1103.19,0.00027123,10]
[390963350,1760233866145,-1103.19,0.00027123,10]
[390963351,1760233866156,-1103.19,0.00027123,10]
[390963352,1760233866165,-1103.19,0.00027123,10]
[390963353,1760233866175,-1103.19,0.00027123,10]
[390963354,1760233866185,-1103.19,0.00027123,10]
[390963355,1760233866195,-1103.19,0.00027123,10]
[390963356,1760233866205,-1103.19,0.00027123,10]
[390963357,1760233866215,-1103.19,0.00027123,10]
[390963358,1760233866225,-1103.19,0.00027123,10]
[390963359,1760233866234,-1103.19,0.00027123,10]
[390963360,1760233866245,-1103.19,0.00027123,10]
[390963361,1760233866256,-1103.19,0.00027123,10]
[390963362,1760233866265,-1103.19,0.00027123,10]
[390963363,1760233866275,-1103.19,0.00027123,10]
[390963364,1760233866285,-1103.19,0.00027123,10]
[390963365,1760233866295,-1103.19270517,0.00027123,10]
[390963366,1760233866305,-1039.5697889,0.000273,2]
[390963367,1760233866316,-2580.36,0.00027381,2]
[390963368,1760233866327,-1000.0,0.00027397,30]
[390963369,1760233866336,-1000.0,0.00027397,30]
[390963370,1760233866346,-1000.0,0.00027397,30]
[390963371,1760233866355,-1000.0,0.00027397,30]
[390963372,1760233866366,-1000.0,0.00027397,30]
[390963373,1760233866376,-1137.84693006,0.00027397,30]
[390963374,1760233866385,-12983.35,0.00027397,4]
[390963375,1760233866395,-650.0,0.00027397,5]
[390963376,1760233866405,-150.0,0.00027397,5]
[390963377,1760233866414,-6954.26,0.000274,2]
[390963378,1760233866425,-159.0,0.000275,120]
[390963379,1760233866435,-717.5824287,0.000275,2]
[390963380,1760233866444,-3030.97,0.000276,2]
[390963381,1760233866454,-151.97,0.00027609,15]
[390963382,1760233866463,-151.97,0.00027709,15]
[390963383,1760233866472,-3292.0,0.00027738,2]
[390963384,1760233866483,-823.0,0.00027738,2]
[390963385,1760233866493,-151.97,0.00027809,15]
[390963386,1760233866503,-1437.02381772,0.00027892,2]
[390963387,1760233866513,-151.97,0.00027909,15]
[390963388,1760233866522,-750.0,0.00027945,5]
[390963389,1760233866532,-250.0,0.00027945,5]
[390963390,1760233866541,-151.97,0.00028009,15]
[390963391,1760233866551,-760.63737442,0.000281,2]
[390963392,1760233866561,-151.97,0.00028109,15]
[390963393,1760233866570,-3292.0,0.00028111,2]
[390963394,1760233866579,-1437.02381772,0.00028179,2]
[390963395,1760233866589,-500.0,0.00028192,10]
[390963396,1760233866598,-151.97,0.00028209,15]
[390963397,1760233866607,-151.97,0.00028309,15]
[390963398,1760233866618,-1437.02381772,0.00028365,2]
[390963399,1760233866627,-250.61241718,0.00028409,2]
[390963400,1760233866637,-151.97,0.00028409,15]
[390963401,1760233866648,-850.0,0.00028493,5]
[390963402,1760233866660,-350.0,0.00028493,5]
[390963403,1760233866670,-151.97,0.00028509,15]
[390963404,1760233866679,-198.0,0.0002851,20]
[390963405,1760233866688,-500.0,0.00028511,10]
[390963406,1760233866698,-151.97,0.00028609,15]
[390963407,1760233866707,-6954.26,0.000287,2]
[390963408,1760233866716,-803.69232015,0.000287,2]
[390963409,1760233866726,-151.97,0.00028709,15]
[390963410,1760233866735,-1437.02381772,0.00028735,2]
[390963411,1760233866744,-301.7132,0.0002875,120]
[390963412,1760233866753,-12983.35,0.00028767,6]
[390963413,1760233866762,-151.97,0.00028809,15]
[390963414,1760233866771,-72895.14384916,0.000289,30]
[390963415,1760233866780,-151.97,0.00028909,15]
[390963416,1760233866790,-1437.02381772,0.0002897,2]
[390963417,1760233866799,-151.97,0.00029009,15]
[390963418,1760233866809,-284.03378666,0.00029041,5]
[390963419,1760233866818,-1437.02381772,0.00029044,2]
[390963420,1760233866829,-151.97,0.00029109,15]
[390963421,1760233866839,-3030.97,0.000292,2]
[390963422,1760233866848,-151.97,0.00029209,15]
[390963423,1760233866857,-846.74726587,0.000293,2]
[390963424,1760233866866,-151.97,0.00029309,15]
[390963425,1760233866877,-151.97,0.00029409,15]
[390963426,1760233866887,-151.98715478,0.00029509,15]
[390963427,1760233866897,-1437.02381772,0.00029519,2]
[390963428,1760233866907,-1437.02381778,0.000296,2]
[390963429,1760233866916,-807.52882677,0.00029704,2]
[390963430,1760233866925,-1000.0,0.00029754,30]
[390963431,1760233866937,-159.347131,0.0002985,2]
[390963432,1760233866946,-889.80221159,0.000299,2]
[390963433,1760233866958,-58000.0,0.0003,30]
[390963434,1760233866967,-181.66,0.00030136,120]
[390963435,1760233866978,-12983.35,0.00030136,8]
[390963436,1760233866988,-551.0,0.00030154,2]
[390963437,1760233866997,-1152.0,0.00030154,2]
[390963438,1760233867032,-159.347131,0.00030184,8]
[390963440,1760233867041,-165.0,0.00030192,7]
[390963441,1760233867050,-165.0,0.00030192,7]
[390963442,1760233867059,-166.0,0.00030192,7]
[390963443,1760233867069,-165.0,0.00030192,7]
[390963444,1760233867078,-165.0,0.00030192,7]
[390963445,1760233867088,-166.0,0.00030192,7]
[390963446,1760233867096,-165.0,0.00030192,7]
[390963447,1760233867106,-165.74684479,0.00030192,7]
[390963448,1760233867118,-205.43043741,0.00030192,7]
[390963449,1760233867129,-157.0,0.00030192,7]
[390963450,1760233867141,-155.0,0.00030192,7]
[390963451,1760233867151,-166.0,0.00030192,7]
[390963452,1760233867163,-166.0,0.00030192,7]
[390963453,1760233867173,-166.0,0.00030192,7]
[390963454,1760233867184,-166.0,0.00030192,7]
[390963455,1760233867195,-329.0,0.00030192,7]
[390963456,1760233867205,-329.0,0.00030192,7]
[390963457,1760233867215,-329.0,0.00030192,7]
[390963458,1760233867224,-329.0,0.00030192,7]
[390963459,1760233867238,-176.51579718,0.00030192,7]
[390963460,1760233867248,-156.305433,0.000302,8]
[390963461,1760233867257,-159.347131,0.000302,8]
[390963462,1760233867267,-181.66,0.00030273,120]
[390963463,1760233867277,-6954.26,0.000303,2]
[390963464,1760233867286,-176.751441,0.000303,30]
[390963465,1760233867295,-176.751441,0.000303,30]
[390963466,1760233867305,-176.751441,0.000303,30]
[390963467,1760233867315,-176.751441,0.000303,30]
[390963468,1760233867325,-151.0,0.000303,30]
[390963469,1760233867334,-154.316352,0.000303,30]
[390963470,1760233867343,-151.0,0.000303,30]
[390963471,1760233867352,-151.0,0.000303,30]
[390963472,1760233867360,-151.0,0.000303,30]
[390963473,1760233867369,-151.0,0.000303,30]
[390963474,1760233867378,-151.0,0.000303,30]
[390963475,1760233867390,-151.0,0.000303,30]
[390963476,1760233867398,-151.0,0.000303,30]
[390963477,1760233867407,-257.55767,0.000303,30]
[390963478,1760233867417,-157.185412,0.000303,30]
[390963479,1760233867428,-157.185412,0.000303,30]
[390963480,1760233867439,-157.185412,0.000303,30]
[390963481,1760233867448,-157.185412,0.000303,30]
[390963482,1760233867458,-152.183287,0.000303,30]
[390963483,1760233867467,-151.0,0.000303,30]
[390963484,1760233867476,-151.0,0.000303,30]
[390963485,1760233867486,-151.0,0.000303,30]
[390963486,1760233867495,-151.0,0.000303,30]
[390963487,1760233867504,-151.0,0.000303,30]
[390963488,1760233867514,-151.0,0.000303,30]
[390963489,1760233867523,-151.0,0.000303,30]
[390963490,1760233867534,-151.0,0.000303,30]
[390963491,1760233867544,-151.0,0.000303,30]
[390963492,1760233867553,-564.645773,0.000303,30]
[390963493,1760233867562,-151.0,0.000303,30]
[390963494,1760233867571,-168.283498,0.000303,30]
[390963495,1760233867580,-564.645773,0.000303,30]
[390963496,1760233867591,-220.875325,0.000303,30]
[390963497,1760233867600,-564.645773,0.000303,30]
[390963498,1760233867609,-564.645773,0.000303,30]
[390963499,1760233867618,-151.0,0.000303,30]
[390963500,1760233867628,-151.0,0.000303,30]
[390963501,1760233867646,-151.0,0.000303,30]
[390963502,1760233867655,-151.0,0.000303,30]
[390963503,1760233867666,-10000.0,0.00030301,2]
[390963504,1760233867675,-7306.0,0.00030301,2]
[390963505,1760233867683,-151.0,0.00030301,30]
[390963506,1760233867692,-151.0,0.00030301,30]
[390963507,1760233867701,-217.610415,0.00030301,30]
[390963508,1760233867712,-217.610415,0.00030301,30]
[390963509,1760233867721,-217.610415,0.00030301,30]
[390963510,1760233867730,-151.0,0.00030301,30]
[390963511,1760233867740,-151.0,0.00030301,30]
[390963512,1760233867750,-217.610415,0.00030301,30]
[390963513,1760233867759,-151.0,0.00030301,30]
[390963514,1760233867768,-151.0,0.00030301,30]
[390963515,1760233867778,-151.0,0.00030301,30]
[390963516,1760233867788,-151.0,0.00030301,30]
[390963517,1760233867799,-151.0,0.00030301,30]
[390963518,1760233867808,-189.85125,0.00030301,30]
[390963519,1760233867817,-151.939,0.00030301,30]
[390963520,1760233867826,-151.0,0.00030301,30]
[390963521,1760233867836,-151.0,0.00030301,30]
[390963522,1760233867846,-202.6244,0.00030301,30]
[390963523,1760233867856,-151.0,0.00030301,30]
[390963524,1760233867865,-151.0,0.00030301,30]
[390963525,1760233867874,-202.6244,0.00030301,30]
[390963526,1760233867883,-202.6244,0.00030301,30]
[390963527,1760233867893,-202.6244,0.00030301,30]
[390963528,1760233867902,-151.0,0.00030301,30]
[390963529,1760233867911,-703.183192,0.00030301,30]
[390963530,1760233867920,-703.183192,0.00030301,30]
[390963531,1760233867929,-703.183192,0.00030301,30]
[390963532,1760233867939,-703.183192,0.00030301,30]
[390963533,1760233867949,-151.0,0.00030301,30]
[390963534,1760233867959,-230.018556,0.00030301,30]
[390963535,1760233867967,-151.0,0.00030301,30]
[390963536,1760233867977,-151.0,0.00030301,30]
[390963537,1760233867986,-230.018556,0.00030301,30]
[390963538,1760233867995,-151.0,0.00030301,30]
[390963539,1760233868006,-151.0,0.00030301,30]
[390963540,1760233868015,-230.018556,0.00030301,30]
[390963541,1760233868024,-151.0,0.00030301,30]
[390963542,1760233868034,-230.018556,0.00030301,30]
[390963543,1760233868043,-153.865829,0.00030301,30]
[390963544,1760233868052,-151.0,0.00030301,30]
[390963545,1760233868061,-246.678698,0.00030301,30]
[390963546,1760233868070,-151.0,0.00030301,30]
[390963547,1760233868079,-151.0,0.00030301,30]
[390963548,1760233868088,-151.0,0.00030301,30]
[390963549,1760233868097,-163.885816,0.00030301,30]
[390963550,1760233868106,-151.0,0.00030301,30]
[390963551,1760233868121,-151.0,0.00030301,30]
[390963552,1760233868130,-151.0,0.00030301,30]
[390963553,1760233868142,-293.42641,0.00030301,30]
[390963554,1760233868151,-293.42641,0.00030301,30]
[390963555,1760233868162,-151.0,0.00030301,30]
[390963556,1760233868171,-293.42641,0.00030301,30]
[390963557,1760233868180,-151.0,0.00030301,30]
[390963558,1760233868190,-293.42641,0.00030301,30]
[390963559,1760233868199,-151.0,0.00030301,30]
[390963560,1760233868209,-151.0,0.00030301,30]
[390963561,1760233868219,-151.0,0.00030301,30]
[390963562,1760233868228,-151.0,0.00030301,30]
[390963563,1760233868238,-153.005721,0.00030301,30]
[390963564,1760233868248,-151.0,0.00030304,30]
[390963565,1760233868257,-151.465189,0.00030304,30]
[390963566,1760233868266,-509.38404,0.00030304,30]
[390963567,1760233868275,-509.38404,0.00030304,30]
[390963568,1760233868285,-509.38404,0.00030304,30]
[390963569,1760233868295,-151.0,0.00030304,30]
[390963570,1760233868304,-509.38404,0.00030304,30]
[390963571,1760233868314,-151.0,0.00030304,30]
[390963572,1760233868324,-151.0,0.00030304,30]
[390963573,1760233868334,-151.0,0.00030304,30]
[390963574,1760233868343,-152.117073,0.00030304,30]
[390963575,1760233868353,-151.0,0.00030304,30]
[390963576,1760233868363,-151.0,0.00030304,30]
[390963577,1760233868372,-151.0,0.00030304,30]
[390963578,1760233868382,-151.0,0.00030304,30]
[390963579,1760233868392,-151.0,0.00030304,30]
[390963580,1760233868402,-151.0,0.00030304,30]
[390963581,1760233868411,-555.894207,0.00030304,30]
[390963582,1760233868421,-555.894207,0.00030304,30]
[390963583,1760233868430,-555.894207,0.00030304,30]
[390963584,1760233868439,-555.894207,0.00030304,30]
[390963585,1760233868448,-151.0,0.00030304,30]
[390963586,1760233868458,-151.0,0.00030304,30]
[390963587,1760233868467,-151.0,0.00030304,30]
[390963588,1760233868476,-151.0,0.00030304,30]
[390963589,1760233868485,-150.0,0.00030304,2]
[390963590,1760233868494,-205079.68730109,0.00030304,20]
[390963591,1760233868503,-91379.92878483,0.00030304,2]
[390963592,1760233868514,-225.64669928,0.00030304,15]
[390963593,1760233868523,-300.0,0.00030304,2]
[390963594,1760233868532,-3886.18743866,0.00030304,2]
[390963595,1760233868542,-810.81339319,0.00030304,2]
[390963596,1760233868551,-258.55525668,0.00030304,2]
[390963597,1760233868561,-240.4597466,0.00030304,10]
[390963598,1760233868570,-297.28479008,0.00030304,2]
[390963599,1760233868580,-50010.84860944,0.00030304,5]
[390963600,1760233868591,-327.45706987,0.00030304,2]
[390963601,1760233868600,-292.24761959,0.00030304,2]
[390963602,1760233868610,-194.87567149,0.00030304,12]
[390963603,1760233868620,-638.11049295,0.00030304,2]
[390963604,1760233868631,-1363.69842866,0.00030304,2]
[390963605,1760233868644,-156.83351984,0.00030304,2]
[390963606,1760233868655,-6301.29202423,0.00030304,2]
[390963607,1760233868666,-1095.84666558,0.00030304,10]
[390963608,1760233868678,-157.83419757,0.00030304,2]
[390963609,1760233868689,-8667.76722455,0.00030304,2]
[390963610,1760233868700,-3740.28664698,0.00030304,7]
[390963611,1760233868711,-1719.20816001,0.00030304,2]
[390963612,1760233868723,-3587.999999,0.00030304,7]
[390963613,1760233868734,-2078.97304031,0.00030304,2]
[390963614,1760233868744,-1500.0,0.00030304,3]
[390963615,1760233868754,-429.16435768,0.00030304,7]
[390963616,1760233868764,-200.0,0.00030304,10]
[390963617,1760233868772,-10590.79276867,0.00030304,7]
[390963618,1760233868780,-508.24618066,0.00030304,2]
[390963619,1760233868787,-1002.02249188,0.00030304,2]
[390963620,1760233868794,-468.46283752,0.00030304,2]
[390963621,1760233868802,-179.53231605,0.00030304,2]
[390963622,1760233868811,-498.0,0.00030304,7]
[390963623,1760233868821,-909.9648072,0.00030304,14]
[390963624,1760233868830,-26000.79999935,0.00030304,6]
[390963625,1760233868840,-30482.30003228,0.00030304,2]
[390963626,1760233868850,-189.41571748,0.00030304,2]
[390963627,1760233868860,-1398.74796368,0.00030304,2]
[390963628,1760233868872,-5903.3103795,0.00030304,2]
[390963629,1760233868882,-10694.86721083,0.00030304,2]
[390963630,1760233868895,-652.03904262,0.00030304,2]
[390963631,1760233868904,-1541.04435632,0.00030304,14]
[390963632,1760233868915,-154.3487781,0.00030304,7]
[390963633,1760233868925,-2920.0,0.00030304,2]
[390963634,1760233868935,-813.13950623,0.00030304,15]
[390963635,1760233868945,-10467.49218952,0.00030304,2]
[390963636,1760233868955,-20000.0,0.00030304,30]
[390963637,1760233868966,-1444.53304621,0.00030304,2]
[390963638,1760233868976,-385.35044903,0.00030304,2]
[390963639,1760233868987,-201.60726783,0.00030304,2]
[390963640,1760233868996,-1521.08806413,0.00030304,15]
[390963641,1760233869007,-3151.02793611,0.00030304,2]
[390963642,1760233869016,-365.10385937,0.00030304,2]
[390963643,1760233869026,-166.78596952,0.00030304,2]
[390963644,1760233869035,-2516.98535222,0.00030304,7]
[390963645,1760233869045,-100370.42113177,0.00030304,2]
[390963646,1760233869055,-150.53534174,0.00030304,2]
[390963647,1760233869066,-258.87111469,0.00030304,2]
[390963648,1760233869076,-176.51046614,0.00030304,7]
[390963649,1760233869086,-3770.52951071,0.00030304,2]
[390963650,1760233869096,-158.0,0.00030304,10]
[390963651,1760233869106,-8168.08318115,0.00030304,2]
[390963652,1760233869121,-250.0,0.00030304,10]
[390963653,1760233869130,-250.0,0.00030304,10]
[390963654,1760233869140,-250.0,0.00030304,10]
[390963655,1760233869150,-498.161263,0.00030304,10]
[390963656,1760233869162,-184.78247473,0.0003034,2]
[390963657,1760233869172,-298.08050243,0.00030348,7]
[390963658,1760233869183,-49244.79620562,0.0003035,2]
[390963659,1760233869194,-1000.0,0.00030373,5]
[390963660,1760233869206,-181.66,0.0003041,120]
[390963661,1760233869216,-932.85715731,0.000305,2]
[390963662,1760233869226,-981.484,0.00030502,2]
[390963663,1760233869236,-2167.202,0.00030502,2]
[390963664,1760233869246,-632.99,0.00030502,2]
[390963665,1760233869256,-150.0,0.00030502,2]
[390963666,1760233869265,-4197.0,0.00030502,2]
[390963667,1760233869275,-181.66,0.00030547,120]
[390963668,1760233869285,-609.42,0.00030684,14]
[390963669,1760233869295,-181.66,0.00030684,120]
[390963670,1760233869305,-499.0,0.00030704,2]
[390963671,1760233869315,-181.66,0.00030821,120]
[390963672,1760233869325,-181.66,0.00030958,120]
[390963673,1760233869336,-303.34271639,0.0003099,2]
[390963674,1760233869346,-181.66,0.00031095,120]
[390963675,1760233869356,-975.91210303,0.000311,2]
[390963676,1760233869365,-159.0,0.000311,120]
[390963677,1760233869375,-30000.0,0.0003112,2]
[390963678,1760233869384,-609.42,0.00031232,15]
[390963679,1760233869395,-181.66,0.00031232,120]
[390963680,1760233869404,-150.0,0.0003125,7]
[390963681,1760233869413,-3030.97,0.000313,2]
[390963682,1760233869423,-325.7514914,0.00031357,30]
[390963683,1760233869432,-181.66,0.00031369,120]
[390963684,1760233869441,-84375.6874,0.00031444,2]
[390963685,1760233869452,-181.66,0.00031506,120]
[390963686,1760233869461,-12983.35,0.00031506,10]
[390963687,1760233869471,-6954.26,0.000316,2]
[390963688,1760233869480,-181.66,0.00031643,120]
[390963689,1760233869490,-1018.96704876,0.000317,2]
[390963690,1760233869499,-2000.0,0.00031742,5]
[390963691,1760233869508,-159.347131,0.00031744,7]
[390963692,1760233869518,-609.42,0.0003178,16]
[390963693,1760233869527,-181.66,0.0003178,120]
[390963694,1760233869537,-181.66,0.00031917,120]
[390963695,1760233869547,-181.66,0.00032054,120]
[390963696,1760233869556,-1100.0,0.00032156,7]
[390963697,1760233869566,-181.66,0.00032191,120]
[390963698,1760233869575,-1062.02199448,0.000323,2]
[390963699,1760233869584,-156.305433,0.00032324,2]
[390963700,1760233869594,-159.347131,0.00032324,2]
[390963701,1760233869604,-609.42,0.00032328,17]
[390963702,1760233869614,-181.66,0.00032328,120]
[390963703,1760233869623,-181.66,0.00032465,120]
[390963704,1760233869632,-181.66,0.00032602,120]
[390963705,1760233869643,-1000.0,0.00032729,30]
[390963706,1760233869652,-244.0,0.00032729,30]
[390963707,1760233869662,-181.66,0.00032739,120]
[390963708,1760233869671,-1275.0,0.00032781,2]
[390963709,1760233869680,-609.42,0.00032876,18]
[390963710,1760233869689,-181.66,0.00032876,120]
[390963711,1760233869699,-12983.35,0.00032876,120]
[390963712,1760233869708,-161.33156959,0.00032877,2]
[390963713,1760233869717,-159.347131,0.00032891,30]
[390963714,1760233869726,-1105.0769402,0.000329,2]
[390963715,1760233869737,-1100.0,0.00032978,7]
[390963716,1760233869747,-159.0,0.00033,120]
[390963717,1760233869756,-3030.97,0.00033,2]
[390963718,1760233869767,-6954.26,0.00033,14]
[390963719,1760233869776,-159.347131,0.00033,60]
[390963720,1760233869785,-181.66,0.00033013,120]
[390963721,1760233869795,-2111.88319195,0.00033112,5]
[390963722,1760233869804,-181.66,0.0003315,120]
[390963723,1760233869813,-900.836133,0.00033165,2]
[390963724,1760233869823,-453.1685888,0.00033221,4]
[390963725,1760233869832,-181.75436774,0.00033287,120]
[390963726,1760233869842,-250.0,0.000334,14]
[390963727,1760233869851,-250.0,0.000334,14]
[390963728,1760233869860,-250.0,0.000334,14]
[390963729,1760233869869,-250.0,0.000334,14]
[390963730,1760233869879,-250.0,0.000334,14]
[390963731,1760233869888,-250.0,0.000334,14]
[390963732,1760233869899,-250.0,0.000334,14]
[390963733,1760233869909,-163.5,0.000334,14]
[390963734,1760233869919,-2011.0,0.000334,10]
[390963735,1760233869929,-250.0,0.000334,10]
[390963736,1760233869939,-609.42,0.00033424,19]
[390963737,1760233869949,-200.0,0.00033443,10]
[390963738,1760233869959,-151.0,0.00033444,30]
[390963739,1760233869968,-151.0,0.00033444,30]
[390963740,1760233869980,-151.0,0.00033444,30]
[390963741,1760233869990,-222.016605,0.00033444,30]
[390963742,1760233869999,-151.0,0.00033444,30]
[390963743,1760233870010,-151.0,0.00033444,30]
[390963744,1760233870020,-151.0,0.00033444,30]
[390963745,1760233870029,-151.0,0.00033444,30]
[390963746,1760233870038,-439.098643,0.00033444,30]
[390963747,1760233870048,-439.098643,0.00033444,30]
[390963748,1760233870057,-151.0,0.00033444,30]
[390963749,1760233870066,-439.098643,0.00033444,30]
[390963750,1760233870076,-439.098643,0.00033444,30]
[390963751,1760233870087,-151.0,0.00033444,30]
[390963752,1760233870096,-151.0,0.00033444,30]
[390963753,1760233870107,-201.0,0.00033444,30]
[390963754,1760233870117,-372.045092,0.00033444,30]
[390963755,1760233870129,-372.045092,0.00033444,30]
[390963756,1760233870141,-151.0,0.00033444,30]
[390963757,1760233870151,-372.045092,0.00033444,30]
[390963758,1760233870160,-372.045092,0.00033444,30]
[390963759,1760233870171,-151.0,0.00033444,30]
[390963760,1760233870180,-183.044696,0.00033444,30]
[390963761,1760233870190,-183.044696,0.00033444,30]
[390963762,1760233870199,-183.044696,0.00033444,30]
[390963763,1760233870209,-183.044696,0.00033444,30]
[390963764,1760233870218,-168.629372,0.00033444,15]
[390963765,1760233870228,-168.629372,0.00033444,15]
[390963766,1760233870238,-168.629372,0.00033444,15]